fUSD/lending_fUSD_20240511
["ID","MTS","AMOUNT","RATE_DAILY","PERIOD"]
[326810703,1715407842706,-478.41021415,0.00012324,2]
[326810704,1715407842715,-1173.42935213,0.00012324,2]
[326810705,1715407842726,-160.7,0.00012341,2]
[326810706,1715407842736,-414.79,0.000124,2]
[326810707,1715407842745,-160.7,0.00012548,2]
[326810708,1715407842755,-300.0,0.00012608,2]
[326810709,1715407842765,-150.0,0.00012713,2]
[326810710,1715407842775,-150.0,0.00012733,2]
[326810711,1715407842784,-10000.0,0.00012734,2]
[326810712,1715407842794,-150.0,0.00012772,2]
[326810713,1715407842804,-150.0,0.00012791,2]
[326810714,1715407842813,-685.11,0.000128,2]
[326810715,1715407842823,-150.0,0.000128,2]
[326810716,1715407842833,-150.0,0.00012802,2]
[326810717,1715407842842,-150.0,0.00012803,2]
[326810718,1715407842852,-150.0,0.00012804,2]
[326810719,1715407842863,-150.0,0.00012804,2]
[326810720,1715407842873,-150.0,0.00012813,2]
[326810721,1715407842884,-150.0,0.00012825,2]
[326810722,1715407842894,-150.0,0.00012833,2]
[326810723,1715407842903,-3072.35272229,0.00012844,2]
[326810724,1715407842914,-1312.47331,0.0001285,2]
[326810725,1715407842923,-150.0,0.00012866,2]
[326810726,1715407842932,-3156.0,0.00012869,2]
[326810727,1715407842942,-1138.0,0.00012869,2]
[326810728,1715407842951,-444.069,0.00012869,2]
[326810729,1715407842961,-215.0,0.00012869,2]
[326810730,1715407842970,-5910.0,0.00012869,2]
[326810731,1715407842980,-5748.0,0.00012869,2]
[326810732,1715407842989,-37824.0,0.00012869,2]
[326810733,1715407842999,-1059.572,0.00012869,2]
[326810734,1715407843009,-256.649,0.00012873,2]
[326810735,1715407843021,-909.349,0.00012873,2]
[326810737,1715407843031,-1000.0,0.00012875,2]
[326810738,1715407843040,-2500.0,0.00012875,2]
[326810739,1715407843050,-500.0,0.00012875,2]
[326810740,1715407843059,-2203.435,0.00012876,2]
[326810741,1715407843070,-1000.0,0.00012876,2]
[326810742,1715407843080,-172.24243452,0.00012878,2]
[326810743,1715407843090,-8488.36006076,0.00012878,2]
[326810745,1715407843099,-180.04205361,0.0001288,2]
[326810746,1715407843109,-171.24335524,0.0001288,2]
[326810747,1715407843119,-150.0,0.00012881,2]
[326810748,1715407843128,-1690.74106057,0.0001289,2]
[326810749,1715407843138,-180.0420536,0.0001289,2]
[326810750,1715407843147,-171.24335524,0.0001289,2]
[326810751,1715407843156,-150.0,0.000129,2]
[326810753,1715407843165,-1690.74106057,0.000129,2]
[326810755,1715407843174,-180.0420536,0.000129,2]
[326810757,1715407843183,-171.24335524,0.000129,2]
[326810758,1715407843192,-150.0,0.00012902,2]
[326810759,1715407843201,-150.0,0.0001293,2]
[326810760,1715407843210,-150.0,0.00012936,2]
[326810761,1715407843218,-4591.42341058,0.00012963,2]
[326810762,1715407843227,-155.63,0.00012965,2]
[326810763,1715407843236,-154.6568369,0.00012968,2]
[326810764,1715407843246,-154.6568369,0.00012968,2]
[326810765,1715407843255,-155.63,0.00012968,2]
[326810766,1715407843264,-155.63,0.00012968,2]
[326810767,1715407843273,-427.98536419,0.00012969,2]
[326810768,1715407843282,-636.6456326,0.00012973,2]
[326810769,1715407843291,-157.20779911,0.00012973,2]
[326810770,1715407843300,-214.93520748,0.00012973,2]
[326810771,1715407843310,-155.29324609,0.00012973,2]
[326810772,1715407843319,-155.08774775,0.00012973,2]
[326810773,1715407843328,-49947.80567078,0.00012973,2]
[326810774,1715407843338,-322203.6632783,0.00012973,2]
[326810775,1715407843350,-1051364.7363867,0.00012973,2]
[326810776,1715407843361,-11939.18308989,0.00012973,2]
[326810777,1715407843373,-652.13429658,0.00012973,2]
[326810778,1715407844809,-366.59799848,0.00012734,2]
[326810779,1715407844834,-9145.8,0.00012734,2]
[326810780,1715407846361,-1216.77,0.000124,2]
[326810781,1715407846371,-487.60200152,0.00012734,2]
[326810782,1715407846381,-3468.57839746,0.00012734,2]
[326810783,1715407846390,-3384.96417277,0.00012973,2]
[326810784,1715407846651,-2410.53739105,0.00012973,2]
[326810785,1715407846662,-2000.0,0.00012973,2]
[326810786,1715407846674,-440.334,0.00012973,2]
[326810787,1715407939876,8644.3069,0.00011621,2]
[326810790,1715407959150,22008.0,0.00025,120]
[326810793,1715408384228,23900.0,0.000117,2]
[326810794,1715408386663,3445.22405166,0.00025,120]
[326810795,1715408548149,10000.0,0.00025,120]
[326810796,1715408551620,983.13,0.00011669,2]
[326810797,1715408553303,160.32903932,0.00011633,2]
[326810798,1715408573674,212.33,0.00025,120]
[326810800,1715408744003,8838.64288707,0.00011603,2]
[326810801,1715408759067,250.0,0.00011644,2]
[326810802,1715408761072,268.0359419,0.00011701,2]
[326810803,1715408762455,3005.88174248,0.00011701,2]
[326810804,1715408765757,3281.56419494,0.00011701,2]
[326810805,1715408769572,1213.23301464,0.00011701,2]
[326810806,1715408825115,-155.0,0.00011702,2]
[326810807,1715408825137,-522.90504645,0.00011702,2]
[326810808,1715408825157,-5269.38829071,0.00011703,2]
[326810809,1715408825178,-335.9,0.0001171,2]
[326810810,1715408825200,-250.0,0.00011739,2]
[326810811,1715408825222,-800.0,0.00011751,2]
[326810812,1715408825244,-621.13,0.00011799,2]
[326810813,1715408825264,-1151.71,0.00011802,2]
[326810814,1715408825285,-173.93,0.00011877,2]
[326810815,1715408825305,-150.0,0.00011886,2]
[326810816,1715408825325,-180.88003264,0.00011887,2]
[326810817,1715408825346,-150.99,0.00011913,2]
[326810818,1715408825366,-499.99,0.00011965,2]
[326810819,1715408825386,-200.0,0.00012041,2]
[326810820,1715408825409,-238.14,0.00012061,2]
[326810821,1715408825429,-200.1124092,0.000126,2]
[326810822,1715408825449,-321.23387266,0.00012665,2]
[326810823,1715408825470,-868.43,0.000127,2]
[326810824,1715408825490,-3501.49195481,0.0001271,2]
[326810825,1715408825511,-300.0,0.00012754,2]
[326810826,1715408825531,-150.0,0.00012754,2]
[326810827,1715408825861,-150.0,0.00012754,2]
[326810828,1715408825882,-868.43,0.000128,2]
[326810829,1715408825902,-520.97371143,0.000128,2]
[326810830,1715408837989,-150.0,0.000127,2]
[326810831,1715408838012,-164.46481731,0.00012799,2]
[326810832,1715408911761,314.4633,0.00011602,2]
[326810833,1715409022186,522.90504645,0.00011702,2]
[326810834,1715409030461,3005.88174248,0.00011702,2]
[326810840,1715409032489,-23900.0,0.00011703,2]
[326810841,1715409032498,-250.0,0.00011961,2]
[326810842,1715409032507,-168.02,0.00011966,2]
[326810843,1715409032516,-360.0,0.00011971,2]
[326810844,1715409032525,-11162.72017,0.00012,2]
[326810845,1715409032534,-868.43,0.000128,2]
[326810846,1715409032543,-150.0,0.000128,2]
[326810847,1715409032552,-150.0,0.000128,2]
[326810848,1715409032561,-150.0,0.000128,2]
[326810849,1715409032570,-150.0,0.000128,2]
[326810850,1715409032579,-530.52,0.000128,2]
[326810851,1715409032587,-150.0,0.000128,2]
[326810852,1715409032597,-150.0,0.000128,2]
[326810853,1715409032606,-150.0,0.000128,2]
[326810854,1715409032615,-868.43,0.000128,2]
[326810855,1715409032625,-150.0,0.000128,2]
[326810856,1715409032634,-351.31,0.000128,2]
[326810857,1715409032645,-150.0,0.000128,2]
[326810858,1715409032655,-288.1,0.000128,2]
[326810859,1715409032669,-972.0,0.00012847,2]
[326810860,1715409032679,-867.77036945,0.00012859,2]
[326810861,1715409032688,-3871.9258,0.00012872,2]
[326810862,1715409032697,-2500.0,0.00012872,2]
[326810863,1715409032706,-160.32903932,0.00012873,2]
[326810864,1715409032714,-324.35582334,0.00012873,2]
[326810865,1715409032724,-500.0,0.00012875,2]
[326810866,1715409032733,-11359.0,0.00012875,2]
[326810867,1715409032744,-172.49380918,0.00012878,2]
[326810868,1715409032753,-170.94053024,0.00012878,2]
[326810869,1715409032764,-7900.67136496,0.00012878,2]
[326810870,1715409032773,-563.58035354,0.00012878,2]
[326810871,1715409032783,-563.58035352,0.00012889,2]
[326810872,1715409032792,-151.62334236,0.000129,2]
[326810873,1715409032801,-399.56427023,0.00012926,2]
[326810874,1715409032810,-7283.88,0.00012936,2]
[326810875,1715409032819,-4584.53301792,0.00012959,2]
[326810876,1715409032828,-427.98536419,0.00012965,2]
[326810877,1715409032837,-233.8320123,0.0001297,2]
[326810878,1715409032847,-207.06421096,0.0001297,2]
[326810879,1715409032857,-337.1187428,0.0001297,2]
[326810880,1715409032866,-1213.00333518,0.0001297,2]
[326810881,1715409032875,-3275.60650835,0.0001297,2]
[326810882,1715409032885,-3834.41334804,0.0001297,2]
[326810883,1715409032894,-158.39167548,0.0001297,2]
[326810884,1715409032903,-170.94453194,0.0001297,2]
[326810885,1715409032911,-1757.4088494,0.0001297,2]
[326810886,1715409032921,-155.0,0.00012971,2]
[326810887,1715409032931,-411.05665986,0.00012971,2]
[326810888,1715409032940,-1399.57676172,0.00012971,2]
[326810889,1715409032950,-275.63900671,0.00012971,2]
[326810890,1715409032960,-490.48999384,0.00012971,2]
[326810891,1715409032969,-281.81274419,0.00012971,2]
[326810892,1715409032978,-30542.87801101,0.00012972,2]
[326810893,1715409033012,-397.82076205,0.00012972,2]
[326810894,1715409033035,-17124.03348161,0.00012972,2]
[326810902,1715409038393,-289.322,0.00012847,2]
[326810903,1715409038403,-151.62334233,0.000129,2]
[326810904,1715409038412,-563.58035352,0.000129,2]
[326810905,1715409038422,-416.57930715,0.00012972,2]
[326810906,1715409038523,-151.62334233,0.000129,2]
[326810907,1715409038533,-1715.92329202,0.00012972,2]
[326810908,1715409038545,-292.82652537,0.00012972,2]
[326810928,1715409042211,-531.23939442,0.00012972,2]
[326810929,1715409042224,-520.03019342,0.00012972,2]
[326810930,1715409042236,-437.50049816,0.00012972,2]
[326810931,1715409042249,-2030.1395477,0.00012972,2]
[326810932,1715409042262,-2920.37091795,0.00012972,2]
[326810957,1715409043574,-151.62334233,0.000129,2]
[326810958,1715409043806,-174.03495975,0.00012963,2]
[326810959,1715409043897,-4219.8413538,0.00012972,2]
[326810960,1715409047392,-397.0,0.00012971,2]
[326810974,1715410097234,1206.27,0.00011695,2]
[326810975,1715410168572,203.30817188,0.00025,120]
[326810984,1715410231883,-2739.75849578,0.00011738,2]
[326810985,1715410232008,-266.1232467,0.00011738,2]
[326810986,1715410232018,-522.90504645,0.00011739,2]
[326810987,1715410232027,-707.73,0.00011742,2]
[326810988,1715410232036,-250.0,0.00011748,2]
[326810989,1715410232046,-250.0,0.00011789,2]
[326810990,1715410232055,-150.0,0.00011789,2]
[326810991,1715410232064,-7800.15,0.00011797,2]
[326810992,1715410232074,-288.0,0.00011798,2]
[326810993,1715410232083,-1913.04,0.00011801,2]
[326810995,1715410232093,-228.58,0.00011842,2]
[326810997,1715410232102,-499.99,0.00011915,2]
[326810998,1715410232112,-687.22351,0.00012,2]
[326811000,1715410232122,-712.0,0.0001201,2]
[326811002,1715410232131,-176.73,0.00012252,2]
[326811004,1715410232139,-552.35,0.000125,2]
[326811006,1715410232149,-347.45,0.000125,2]
[326811007,1715410232159,-150.0,0.000125,2]
[326811009,1715410232170,-150.0,0.000125,2]
[326811011,1715410232180,-419.86,0.000125,2]
[326811013,1715410232189,-150.0,0.000125,2]
[326811015,1715410232198,-868.43,0.000125,2]
[326811016,1715410232207,-1000.0,0.000125,2]
[326811018,1715410232216,-420.16,0.000125,2]
[326811020,1715410232225,-150.0,0.000125,2]
[326811022,1715410232234,-427.64,0.000125,2]
[326811024,1715410232246,-150.0,0.000125,2]
[326811026,1715410232255,-420.16,0.000125,2]
[326811027,1715410232264,-150.0,0.000125,2]
[326811029,1715410232273,-150.0,0.000125,2]
[326811031,1715410232281,-3501.49195481,0.0001267,2]
[326811033,1715410232290,-420.16,0.000127,2]
[326811035,1715410232299,-150.0,0.000127,2]
[326811036,1715410232309,-744.16,0.000127,2]
[326811038,1715410232318,-420.16,0.000127,2]
[326811040,1715410232327,-151.07,0.000127,2]
[326811042,1715410232336,-150.0,0.000127,2]
[326811044,1715410232345,-523.32,0.00012754,2]
[326811045,1715410232354,-150.0,0.00012754,2]
[326811047,1715410232364,-523.32,0.00012754,2]
[326811049,1715410232373,-704.48,0.00012754,2]
[326811051,1715410232382,-800.0,0.00012767,2]
[326811053,1715410232391,-1002.92,0.000128,2]
[326811054,1715410232400,-150.0,0.000128,2]
[326811056,1715410232410,-150.0,0.000128,2]
[326811058,1715410232419,-523.32,0.000128,2]
[326811060,1715410232430,-684.58,0.000128,2]
[326811062,1715410232438,-150.0,0.000128,2]
[326811064,1715410232447,-150.0,0.000128,2]
[326811066,1715410232457,-523.32,0.000128,2]
[326811067,1715410232466,-152.15,0.000128,2]
[326811069,1715410232475,-150.0,0.000128,2]
[326811071,1715410232484,-22.52624201,0.000128,2]
[326811201,1715410237682,-354.73367643,0.000128,2]
[326811202,1715410237813,-146.06008156,0.000128,2]
[326811203,1715410237823,-150.0,0.000128,2]
[326811204,1715410237832,-150.0,0.000128,2]
[326811205,1715410237841,-44.11328604,0.000128,2]
[326811206,1715410237853,-105.88671396,0.000128,2]
[326811207,1715410237862,-150.0,0.000128,2]
[326811208,1715410237871,-523.32,0.000128,2]
[326811209,1715410237880,-150.0,0.000128,2]
[326811210,1715410237889,-38.29399794,0.000128,2]
[326811211,1715410237981,-290.32600206,0.000128,2]
[326811212,1715410237991,-150.0,0.000128,2]
[326811213,1715410238000,-150.0,0.000128,2]
[326811214,1715410238010,-154.6,0.000128,2]
[326811215,1715410238019,-523.42,0.000128,2]
[326811216,1715410238029,-153.86,0.000128,2]
[326811217,1715410238038,-150.0,0.000128,2]
[326811218,1715410238047,-776.19446106,0.00012839,2]
[326811219,1715410238058,-785.94335183,0.00012839,2]
[326811220,1715410238067,-314.05664817,0.00012872,2]
[326811241,1715410242965,-935.60993868,0.00012872,2]
[326811242,1715410242976,-444.24779552,0.00012872,2]
[326811243,1715410243159,-168.61351763,0.00012872,2]
[326811244,1715410243174,-210.4181,0.00012872,2]
[326811245,1715410243187,-500.0,0.00012875,2]
[326811246,1715410243196,-114.09574278,0.00012878,2]
[326811308,1715410246459,-2363.29239733,0.00012878,2]
[326811309,1715410246883,-4917.64906573,0.00012878,2]
[326811310,1715410246892,-1110.95563587,0.000129,2]
[326811311,1715410246904,-1027.0919997,0.000129,2]
[326811312,1715410247007,-916.385,0.000129,2]
[326811313,1715410247019,-549.5572481,0.000129,2]
[326811314,1715410247055,-3030.99915328,0.000129,2]
[326811323,1715410732855,1999.0,0.00022,30]
[326811330,1715411432029,-268.0359419,0.00011765,2]
[326811331,1715411432038,-522.90504645,0.00011766,2]
[326811332,1715411432047,-160.32903933,0.00011771,2]
[326811333,1715411432059,-15.16460606,0.00011798,2]
[326811335,1715411432071,-167.69539394,0.00011798,2]
[326811337,1715411432081,-250.0,0.00011807,2]
[326811338,1715411432090,-640.03,0.00011868,2]
[326811339,1715411432101,-230.4,0.00011878,2]
[326811340,1715411432110,-168.02,0.00011916,2]
[326811342,1715411432119,-159.53,0.00011975,2]
[326811344,1715411432128,-187.81460606,0.0001204,2]
[326811346,1715411432141,-581.78539394,0.0001204,2]
[326811348,1715411432150,-159.53,0.00012131,2]
[326811350,1715411432159,-58.68460606,0.00012287,2]
[326811351,1715411432170,-100.84539394,0.00012287,2]
[326811352,1715411432179,-165.66243186,0.00012324,2]
[326811353,1715411432188,-159.53,0.00012443,2]
[326811354,1715411432197,-150.0,0.00012478,2]
[326811355,1715411432206,-150.0,0.00012478,2]
[326811356,1715411432215,-3.79066122,0.00012478,2]
[326811361,1715411432354,-416.36933878,0.00012478,2]
[326811362,1715411432363,-212.16703422,0.00012478,2]
[326811363,1715411432373,-311.15296578,0.00012478,2]
[326811364,1715411432383,-57.30560404,0.00012478,2]
[326811371,1715411438233,-92.69439596,0.00012478,2]
[326811372,1715411438242,-523.32,0.00012478,2]
[326811373,1715411438252,-523.32,0.00012478,2]
[326811374,1715411438264,-420.16,0.00012478,2]
[326811375,1715411438272,-150.0,0.00012478,2]
[326811376,1715411438281,-152.5,0.00012478,2]
[326811377,1715411438290,-523.32,0.00012478,2]
[326811378,1715411438299,-523.32,0.00012478,2]
[326811379,1715411438308,-159.53,0.00012599,2]
[326811380,1715411438317,-163.24,0.00012754,2]
[326811381,1715411438326,-166.17,0.00012754,2]
[326811382,1715411438335,-163.24,0.00012754,2]
[326811383,1715411438344,-163.24,0.00012754,2]
[326811384,1715411438354,-163.24,0.00012754,2]
[326811385,1715411438363,-163.24,0.00012754,2]
[326811386,1715411438372,-163.24,0.00012754,2]
[326811387,1715411438381,-163.24,0.00012754,2]
[326811388,1715411438391,-163.24,0.00012754,2]
[326811389,1715411438401,-163.27,0.00012754,2]
[326811390,1715411438411,-163.24,0.00012754,2]
[326811391,1715411438420,-163.24,0.00012754,2]
[326811392,1715411438430,-163.24,0.00012754,2]
[326811393,1715411438440,-351.31,0.00012781,2]
[326811394,1715411438450,-500.0,0.00012871,2]
[326811395,1715411438459,-500.0,0.00012872,2]
[326811396,1715411438469,-33330.6002,0.00012872,2]
[326811397,1715411438478,-1131.4603,0.00012872,2]
[326811398,1715411438488,-2195.10662615,0.00012872,2]
[326811399,1715411438499,-364.0,0.00012872,2]
[326811400,1715411438512,-383.0418303,0.00012872,2]
[326811401,1715411438524,-5080.02471071,0.00012872,2]
[326811402,1715411438535,-4444.34913284,0.00012872,2]
[326811403,1715411438545,-500.0,0.00012872,2]
[326811404,1715411438554,-500.0,0.00012873,2]
[326811405,1715411438563,-6778.78410539,0.00012878,2]
[326811406,1715411438573,-3365.01096305,0.000129,2]
[326811407,1715411438583,-2327.00742357,0.000129,2]
[326811408,1715411438595,-1384.31045091,0.000129,2]
[326811409,1715411438606,-539.00383144,0.000129,2]
[326811410,1715411440548,-1200.0,0.000129,2]
[326811411,1715411440560,-291.42549812,0.000129,2]
[326811412,1715411440571,-1081.54123139,0.000129,2]
[326811413,1715411440583,-2554.23744066,0.000129,2]
[326811418,1715411442289,-1335.21562601,0.000129,2]
[326811419,1715411442301,-392.58531307,0.000129,2]
[326811426,1715411443440,-611.98425027,0.000129,2]
[326811427,1715411443452,-519.476,0.000129,2]
[326811428,1715411446505,-160.72,0.00012206,2]
[326811429,1715411446515,-7763.21293456,0.000129,2]
[326811430,1715411446525,-1093.72776,0.000129,2]
[326811431,1715411446534,-151.84,0.00012962,2]
[326811432,1715411446543,-174.03495975,0.00012963,2]
[326811433,1715411446552,-151.84,0.00012963,2]
[326811434,1715411446561,-151.84,0.00012964,2]
[326811435,1715411446570,-151.84,0.00012968,2]
[326811436,1715411446579,-151.84,0.00012968,2]
[326811437,1715411446588,-151.84,0.00012968,2]
[326811438,1715411446597,-151.84,0.00012968,2]
[326811439,1715411446607,-165.91738265,0.0001297,2]
[326811440,1715411446616,-5334.59998371,0.0001297,2]
[326811441,1715411446625,-692.02231962,0.0001297,2]
[326811442,1715411446635,-530.14201946,0.0001297,2]
[326811443,1715411446644,-152.7,0.0001297,2]
[326811444,1715411446654,-267.89531828,0.0001297,2]
[326811445,1715411446663,-502.61297714,0.0001297,2]
[326811446,1715411446672,-27851.83204932,0.00012971,2]
[326811450,1715412429123,-200.1124092,0.000118,2]
[326811451,1715412429144,-114.35399091,0.000119,2]
[326811452,1715412440734,-1383.27873173,0.000119,2]
[326811453,1715412440756,-168.33285286,0.000119,2]
[326811454,1715412440779,-815.68,0.00011975,2]
[326811455,1715412440800,-250.0,0.00011985,2]
[326811456,1715412440826,-185.56,0.00011985,2]
[326811457,1715412440848,-621.13,0.00011985,2]
[326811458,1715412440868,-426.01,0.00011999,2]
[326811459,1715412440892,-184.32,0.00012,2]
[326811460,1715412440916,-165.66243186,0.00012323,2]
[326811461,1715412440938,-3501.49195481,0.00012794,2]
[326811462,1715412440960,-1002.89891515,0.00012871,2]
[326811463,1715412440982,-150.0,0.00012871,2]
[326811464,1715412441002,-500.0,0.00012872,2]
[326811465,1715412441022,-8226.36028524,0.00012872,2]
[326811474,1715412632334,-150.0,0.00012871,2]
[326811475,1715412632343,-17647.954872,0.00012872,2]
[326811476,1715412632497,-184.19964276,0.00012872,2]
[326811477,1715412632508,-435.80035724,0.00012872,2]
[326811478,1715412632521,-571.61940899,0.00012872,2]
[326811480,1715412632532,-764.03790892,0.00012872,2]
[326811482,1715412632640,-1324.76351156,0.00012872,2]
[326811483,1715412632652,-821.36640746,0.00012872,2]
[326811484,1715412632663,-1539.09109043,0.00012872,2]
[326811553,1715412638581,-1152.62062948,0.00012872,2]
[326811554,1715412638594,-23918.19116106,0.00012872,2]
[326811555,1715412640120,-1317.31462486,0.00012872,2]
[326811556,1715412640130,-1911.04602013,0.00012878,2]
[326811628,1715412646874,-4302.83940982,0.00012878,2]
[326811629,1715412646884,-163.24,0.000129,2]
[326811630,1715412646893,-151.62334233,0.000129,2]
[326811631,1715412646902,-151.62334233,0.000129,2]
[326811632,1715412646911,-177.96853061,0.0001295,2]
[326811633,1715412646920,-427.98536419,0.00012964,2]
[326811634,1715412646929,-195.28968759,0.0001297,2]
[326811635,1715412646938,-584.14769743,0.0001297,2]
[326811638,1715412894183,153.0,0.00011678,2]
[326811639,1715412894392,153.0,0.00011681,2]
[326811640,1715412894554,153.0,0.00011685,2]
[326811641,1715412895201,153.0,0.00011688,2]
[326811642,1715412895344,153.0,0.00011692,2]
[326811643,1715412895515,153.0,0.00011695,2]
[326811644,1715412895666,153.0,0.00011699,2]
[326811645,1715412895787,153.0,0.00011702,2]
[326811646,1715412929658,347.45,0.00011205,2]
[326811647,1715412947911,268.0359419,0.00011701,2]
[326811648,1715412963718,522.90504645,0.00011701,2]
[326811649,1715412969479,685.59205887,0.00011701,2]
[326811650,1715412969948,51083.96861486,0.00011701,2]
[326811651,1715412971258,655.88237123,0.00011701,2]
[326811652,1715412973175,1623.84550739,0.00011701,2]
[326811653,1715412976894,155.0,0.00011701,2]
[326811654,1715412977766,2364.8530064,0.00011701,2]
[326811655,1715412988958,155.0,0.00011701,2]
[326811656,1715413045576,201.39,0.00011423,2]
[326811657,1715413045864,201.39,0.00011454,2]
[326811658,1715413046365,201.39,0.00011486,2]
[326811659,1715413046605,201.39,0.00011517,2]
[326811660,1715413046787,201.39,0.00011548,2]
[326811661,1715413047066,201.39,0.00011579,2]
[326811662,1715413047208,201.39,0.00011611,2]
[326811663,1715413047390,201.39,0.00011642,2]
[326811664,1715413047539,201.39,0.00011673,2]
[326811665,1715413059826,155.0,0.00011701,2]
[326811669,1715413092479,-2184.28099016,0.00011702,2]
[326811670,1715413092509,-201.39,0.00011705,2]
[326811671,1715413092536,-153.0,0.00011705,2]
[326811672,1715413092562,-153.0,0.00011709,2]
[326811673,1715413092590,-150.0,0.0001171,2]
[326811674,1715413092620,-153.0,0.00011712,2]
[326811675,1715413093103,-153.0,0.00011716,2]
[326811676,1715413093129,-153.0,0.00011719,2]
[326811677,1715413093152,-335.9,0.00011721,2]
[326811678,1715413093177,-153.0,0.00011722,2]
[326811679,1715413093200,-153.0,0.00011726,2]
[326811680,1715413093223,-153.0,0.00011729,2]
[326811681,1715413093249,-153.0,0.00011733,2]
[326811682,1715413093272,-201.39,0.00011736,2]
[326811683,1715413093296,-153.0,0.00011736,2]
[326811684,1715413093319,-201.39,0.00011767,2]
[326811685,1715413093343,-250.0,0.00011772,2]
[326811686,1715413093367,-201.39,0.00011799,2]
[326811687,1715413093397,-201.39,0.0001183,2]
[326811688,1715413093425,-201.39,0.00011861,2]
[326811689,1715413093451,-201.39,0.00011893,2]
[326811690,1715413093477,-201.39,0.00011924,2]
[326811691,1715413093504,-1151.71,0.00011929,2]
[326811692,1715413093527,-173.93,0.00011942,2]
[326811693,1715413093553,-201.39,0.00011955,2]
[326811694,1715413093578,-201.39,0.00011987,2]
[326811695,1715413112703,-201.39,0.00012018,2]
[326811696,1715413112727,-752.12,0.00012024,2]
[326811697,1715413112752,-12806.7566,0.00012039,2]
[326811698,1715413112778,-16773.36788953,0.00012136,2]
[326811699,1715413112801,-250.0,0.00012141,2]
[326811700,1715413112825,-170.41266715,0.00012322,2]
[326811701,1715413112848,-171.87,0.00012433,2]
[326811703,1715413153359,-347.45,0.00012606,2]
[326811704,1715413153387,-414.93,0.0001274,2]
[326811705,1715413153413,-150.0,0.00012799,2]
[326811706,1715413153440,-4115.67404376,0.000128,2]
[326811707,1715413153498,-414.93,0.000128,2]
[326811708,1715413153548,-399.14,0.00012822,2]
[326811709,1715413153593,-351.31,0.00012822,2]
[326811710,1715413153637,-351.31,0.00012822,2]
[326811711,1715413153682,-180.99989025,0.00012868,2]
[326811712,1715413153723,-762.41934842,0.00012868,2]
[326811713,1715413153760,-437.63224991,0.00012868,2]
[326811714,1715413153803,-269.87300239,0.00012868,2]
[326811715,1715413153844,-254.2167413,0.00012868,2]
[326811716,1715413153874,-172.35051311,0.00012868,2]
[326811717,1715413153913,-350.21179823,0.00012868,2]
[326811718,1715413153958,-155.76948322,0.00012868,2]
[326811719,1715413153992,-157.02819091,0.00012868,2]
[326811720,1715413154067,-430.87701931,0.00012868,2]
[326811721,1715413154111,-156.97148129,0.00012868,2]
[326811722,1715413154155,-500.0,0.00012869,2]
[326811723,1715413154196,-219.979258,0.0001287,2]
[326811724,1715413154237,-219.979258,0.0001287,2]
[326811725,1715413154278,-289.180259,0.0001287,2]
[326811726,1715413154322,-289.180259,0.0001287,2]
[326811727,1715413154360,-151.0,0.0001287,2]
[326811728,1715413154397,-158.79165808,0.0001287,2]
[326811729,1715413154433,-165.094744,0.0001287,2]
[326811730,1715413154471,-165.094744,0.0001287,2]
[326811731,1715413154507,-151.0,0.0001287,2]
[326811732,1715413154542,-151.0,0.0001287,2]